[Event "Titled Tuesday Blitz January 17 Early 2023"]
[White "Martinez Alcantara, Jose Eduardo"]
[Black "Seo, Jung Min"]
[WhiteFideId "3805662"]
[BlackFideId "1734687"]
[WhiteElo "2619"]
[BlackElo "2494"]
[Result "1/2-1/2"]
[Round "08"]
[TimeControl "180+2"]
[Date "2023.01.17"]
[WhiteClock "0:00:06"]
[BlackClock "0:00:04"]

1. e4 {[%clk 0:03:00]}  c6 {[%clk 0:03:00]} 2. d4 {[%clk 0:03:00]}  d5 {[%clk 0:03:00]} 3. e5 {[%clk 0:03:01]}  Bf5 {[%clk 0:03:00]} 4. h4 {[%clk 0:03:01]}  h5 {[%clk 0:02:58]} 5. Bd3 {[%clk 0:03:01]}  Bxd3 {[%clk 0:02:58]} 6. Qxd3 {[%clk 0:03:02]}  Qa5+ {[%clk 0:02:55]} 7. b4 {[%clk 0:03:02]}  Qa6 {[%clk 0:02:44]} 8. e6 {[%clk 0:03:01]}  Qxd3 {[%clk 0:02:43]} 9. cxd3 {[%clk 0:03:02]}  fxe6 {[%clk 0:02:43]} 10. Nd2 {[%clk 0:03:02]}  Nd7 {[%clk 0:02:43]} 11. Ndf3 {[%clk 0:03:00]}  e5 {[%clk 0:02:38]} 12. dxe5 {[%clk 0:02:59]}  e6 {[%clk 0:02:39]} 13. Rb1 {[%clk 0:03:00]}  Nh6 {[%clk 0:02:34]} 14. Nh3 {[%clk 0:02:59]}  Ng4 {[%clk 0:02:18]} 15. d4 {[%clk 0:02:55]}  Be7 {[%clk 0:02:18]} 16. O-O {[%clk 0:02:55]}  b5 {[%clk 0:02:05]} 17. Nf4 {[%clk 0:02:50]}  Kf7 {[%clk 0:02:05]} 18. Bd2 {[%clk 0:02:38]}  Nb6 {[%clk 0:02:05]} 19. g3 {[%clk 0:02:31]}  Nc4 {[%clk 0:02:04]} 20. Bc3 {[%clk 0:02:32]}  g6 {[%clk 0:01:59]} 21. Rfc1 {[%clk 0:02:25]}  Rhb8 {[%clk 0:01:58]} 22. Ra1 {[%clk 0:02:25]}  a5 {[%clk 0:01:54]} 23. bxa5 {[%clk 0:02:20]}  b4 {[%clk 0:01:55]} 24. Be1 {[%clk 0:02:21]}  Rxa5 {[%clk 0:01:55]} 25. Nd3 {[%clk 0:02:21]}  Ra4 {[%clk 0:01:52]} 26. Rcb1 {[%clk 0:02:12]}  Ra3 {[%clk 0:01:45]} 27. Rb3 {[%clk 0:02:09]}  Rba8 {[%clk 0:01:45]} 28. Rab1 {[%clk 0:01:57]}  Rxa2 {[%clk 0:01:15]} 29. Bxb4 {[%clk 0:01:57]}  Ra1 {[%clk 0:01:15]} 30. Bxe7 {[%clk 0:01:53]}  Kxe7 {[%clk 0:01:15]} 31. Rb7+ {[%clk 0:01:40]}  Kd8 {[%clk 0:01:15]} 32. Nc5 {[%clk 0:01:38]}  Kc8 {[%clk 0:01:14]} 33. Nxe6 {[%clk 0:01:09]}  Rxb1+ {[%clk 0:01:09]} 34. Rxb1 {[%clk 0:01:10]}  Ra2 {[%clk 0:01:09]} 35. Rf1 {[%clk 0:01:01]}  Ra3 {[%clk 0:01:08]} 36. Neg5 {[%clk 0:01:01]}  Kd7 {[%clk 0:01:07]} 37. e6+ {[%clk 0:01:00]}  Ke7 {[%clk 0:01:07]} 38. Rb1 {[%clk 0:00:58]}  Ra7 {[%clk 0:01:07]} 39. Rb8 {[%clk 0:00:51]}  Ra1+ {[%clk 0:01:02]} 40. Kg2 {[%clk 0:00:51]}  Ra2 {[%clk 0:01:02]} 41. Rb7+ {[%clk 0:00:51]}  Ke8 {[%clk 0:01:02]} 42. Rb8+ {[%clk 0:00:51]}  Ke7 {[%clk 0:01:03]} 43. Rb7+ {[%clk 0:00:51]}  Ke8 {[%clk 0:01:03]} 44. Nh3 {[%clk 0:00:27]}  Nce3+ {[%clk 0:00:58]} 45. Kh1 {[%clk 0:00:28]}  Nxf2+ {[%clk 0:00:47]} 46. Nxf2 {[%clk 0:00:29]}  Rxf2 {[%clk 0:00:47]} 47. Ne5 {[%clk 0:00:29]}  Rf1+ {[%clk 0:00:44]} 48. Kh2 {[%clk 0:00:29]}  Rf2+ {[%clk 0:00:45]} 49. Kg1 {[%clk 0:00:29]}  Rf1+ {[%clk 0:00:45]} 50. Kh2 {[%clk 0:00:29]}  Rf2+ {[%clk 0:00:36]} 51. Kh3 {[%clk 0:00:19]}  Rf6 {[%clk 0:00:36]} 52. Nxc6 {[%clk 0:00:13]}  Rxe6 {[%clk 0:00:36]} 53. Rb8+ {[%clk 0:00:13]}  Kd7 {[%clk 0:00:30]} 54. Ne5+ {[%clk 0:00:14]}  Ke7 {[%clk 0:00:29]} 55. Rg8 {[%clk 0:00:14]}  Nf5 {[%clk 0:00:25]} 56. Nxg6+ {[%clk 0:00:05]}  Kf7 {[%clk 0:00:24]} 57. Nf4 {[%clk 0:00:06]}  Kxg8 {[%clk 0:00:16]} 58. Nxe6 {[%clk 0:00:07]}  Kf7 {[%clk 0:00:15]} 59. Nf4 {[%clk 0:00:07]}  Nxd4 {[%clk 0:00:15]} 60. Nxd5 {[%clk 0:00:06]}  Kg6 {[%clk 0:00:14]} 61. Nf4+ {[%clk 0:00:06]}  Kh6 {[%clk 0:00:14]} 62. Kg2 {[%clk 0:00:07]}  Nf5 {[%clk 0:00:14]} 63. Kf3 {[%clk 0:00:08]}  Nd6 {[%clk 0:00:12]} 64. Ng2 {[%clk 0:00:07]}  Kg6 {[%clk 0:00:11]} 65. Nf4+ {[%clk 0:00:07]}  Kh6 {[%clk 0:00:11]} 66. Ne2 {[%clk 0:00:08]}  Nf5 {[%clk 0:00:11]} 67. Kf4 {[%clk 0:00:09]}  Ne7 {[%clk 0:00:12]} 68. Nd4 {[%clk 0:00:09]}  Kg6 {[%clk 0:00:12]} 69. Ke4 {[%clk 0:00:08]}  Kf6 {[%clk 0:00:11]} 70. Kf4 {[%clk 0:00:06]}  Ng6+ {[%clk 0:00:11]} 71. Ke3 {[%clk 0:00:05]}  Ne7 {[%clk 0:00:10]} 72. Ne2 {[%clk 0:00:05]}  Kf5 {[%clk 0:00:10]} 73. Kf2 {[%clk 0:00:04]}  Nc6 {[%clk 0:00:10]} 74. Nc3 {[%clk 0:00:03]}  Ne5 {[%clk 0:00:09]} 75. Kg2 {[%clk 0:00:04]}  Nf7 {[%clk 0:00:08]} 76. Ne2 {[%clk 0:00:03]}  Ne5 {[%clk 0:00:08]} 77. Nf4 {[%clk 0:00:04]}  Kg4 {[%clk 0:00:08]} 78. Nd5 {[%clk 0:00:03]}  Kf5 {[%clk 0:00:08]} 79. Kf2 {[%clk 0:00:03]}  Ng4+ {[%clk 0:00:08]} 80. Ke2 {[%clk 0:00:03]}  Ne5 {[%clk 0:00:08]} 81. Ke3 {[%clk 0:00:04]}  Ng4+ {[%clk 0:00:08]} 82. Kd4 {[%clk 0:00:04]}  Nh6 {[%clk 0:00:06]} 83. Ne3+ {[%clk 0:00:04]}  Kg6 {[%clk 0:00:07]} 84. Ke4 {[%clk 0:00:05]}  Nf7 {[%clk 0:00:07]} 85. Nc4 {[%clk 0:00:06]}  Kf6 {[%clk 0:00:06]} 86. Kf4 {[%clk 0:00:07]}  Nd8 {[%clk 0:00:05]} 87. Ke4 {[%clk 0:00:05]}  Nf7 {[%clk 0:00:04]} 88. Ne3 {[%clk 0:00:03]}  Nd8 {[%clk 0:00:03]} 89. Ng2 {[%clk 0:00:04]}  Ne6 {[%clk 0:00:02]} 90. Nf4 {[%clk 0:00:04]}  Ng7 {[%clk 0:00:02]} 91. Nd5+ {[%clk 0:00:03]}  Ke6 {[%clk 0:00:02]} 92. Ne3 {[%clk 0:00:02]}  Kf6 {[%clk 0:00:03]} 93. Kd5 {[%clk 0:00:02]}  Nf5 {[%clk 0:00:03]} 94. Nf1 {[%clk 0:00:02]}  Ng7 {[%clk 0:00:02]} 95. Ke4 {[%clk 0:00:02]}  Nf5 {[%clk 0:00:02]} 96. Kf4 {[%clk 0:00:03]}  Kg6 {[%clk 0:00:03]} 97. Nd2 {[%clk 0:00:03]}  Ng7 {[%clk 0:00:03]} 98. Nf3 {[%clk 0:00:04]}  Kf6 {[%clk 0:00:03]} 99. Ng5 {[%clk 0:00:04]}  Nf5 {[%clk 0:00:03]} 100. Nh7+ {[%clk 0:00:03]}  Kg6 {[%clk 0:00:04]} 101. Nf8+ {[%clk 0:00:04]}  Kf6 {[%clk 0:00:04]} 102. Nd7+ {[%clk 0:00:05]}  Kg6 {[%clk 0:00:04]} 103. Nb6 {[%clk 0:00:04]}  Ne7 {[%clk 0:00:04]} 104. Ke5 {[%clk 0:00:05]}  Nf5 {[%clk 0:00:04]} 105. Kf4 {[%clk 0:00:05]}  Ne7 {[%clk 0:00:04]} 106. Nc4 {[%clk 0:00:06]}  Kf6 {[%clk 0:00:05]} 107. Ne3 {[%clk 0:00:06]}  Ng6+ {[%clk 0:00:05]} 108. Ke4 {[%clk 0:00:07]}  Ne7 {[%clk 0:00:05]} 109. Ng2 {[%clk 0:00:05]}  Nf5 {[%clk 0:00:04]} 110. Kf3 {[%clk 0:00:06]} 1/2-1/2


[Site "https://www.chess.com"]

[Event "Titled Tuesday Blitz January 17 Early 2023"]
[White "Deac, Bogdan-Daniel"]
[Black "Boruchovsky, Avital"]
[WhiteFideId "1226380"]
[BlackFideId "2800055"]
[WhiteElo "2700"]
[BlackElo "2539"]
[Result "1-0"]
[Round "08"]
[TimeControl "180+2"]
[Date "2023.01.17"]
[WhiteClock "0:00:19"]
[BlackClock "0:00:24"]

1. d4 {[%clk 0:03:00]}  Nf6 {[%clk 0:02:57]} 2. c4 {[%clk 0:03:01]}  e6 {[%clk 0:02:56]} 3. Nf3 {[%clk 0:03:01]}  b6 {[%clk 0:02:55]} 4. g3 {[%clk 0:03:01]}  Ba6 {[%clk 0:02:55]} 5. Nbd2 {[%clk 0:03:00]}  d5 {[%clk 0:02:55]} 6. Bg2 {[%clk 0:03:00]}  c6 {[%clk 0:02:54]} 7. Qc2 {[%clk 0:02:56]}  Be7 {[%clk 0:02:52]} 8. O-O {[%clk 0:02:52]}  Nbd7 {[%clk 0:02:52]} 9. b3 {[%clk 0:02:53]}  Rc8 {[%clk 0:02:47]} 10. e4 {[%clk 0:02:44]}  dxe4 {[%clk 0:02:47]} 11. Nxe4 {[%clk 0:02:44]}  c5 {[%clk 0:02:48]} 12. Rd1 {[%clk 0:02:42]}  O-O {[%clk 0:02:45]} 13. Bf4 {[%clk 0:02:33]}  Bb7 {[%clk 0:02:25]} 14. Nxf6+ {[%clk 0:02:15]}  Bxf6 {[%clk 0:02:26]} 15. Ng5 {[%clk 0:02:13]}  Bxg5 {[%clk 0:02:20]} 16. Bxb7 {[%clk 0:02:12]}  Bxf4 {[%clk 0:02:18]} 17. Bxc8 {[%clk 0:02:12]}  Qxc8 {[%clk 0:02:16]} 18. gxf4 {[%clk 0:02:11]}  Qc7 {[%clk 0:02:12]} 19. Qe4 {[%clk 0:01:52]}  cxd4 {[%clk 0:01:48]} 20. Rxd4 {[%clk 0:01:48]}  Nf6 {[%clk 0:01:48]} 21. Qe5 {[%clk 0:01:48]}  Qb7 {[%clk 0:01:47]} 22. Rad1 {[%clk 0:01:39]}  Qf3 {[%clk 0:01:44]} 23. R1d3 {[%clk 0:01:24]}  Qc6 {[%clk 0:01:31]} 24. Rd8 {[%clk 0:01:11]}  Re8 {[%clk 0:01:08]} 25. f5 {[%clk 0:00:59]}  exf5 {[%clk 0:01:02]} 26. Rxe8+ {[%clk 0:00:38]}  Nxe8 {[%clk 0:01:03]} 27. Rd8 {[%clk 0:00:38]}  Kf8 {[%clk 0:01:02]} 28. Qxf5 {[%clk 0:00:38]}  Ke7 {[%clk 0:00:55]} 29. Rd5 {[%clk 0:00:33]}  f6 {[%clk 0:00:37]} 30. Qe4+ {[%clk 0:00:24]}  Kf7 {[%clk 0:00:33]} 31. Re5 {[%clk 0:00:19]}  Qc8 {[%clk 0:00:24]} 32. Re7+ {[%clk 0:00:18]}  Kf8 {[%clk 0:00:24]} 33. Qe6 {[%clk 0:00:19]}  Qxe6 {[%clk 0:00:25]} 34. Rxe6 {[%clk 0:00:20]}  Kf7 {[%clk 0:00:25]} 35. Rc6 {[%clk 0:00:19]}  Ke7 {[%clk 0:00:24]} 36. Rc8 {[%clk 0:00:19]}  Kd7 {[%clk 0:00:24]} 37. Ra8 {[%clk 0:00:19]}  a5 {[%clk 0:00:24]} 38. Rb8 {[%clk 0:00:19]} 1-0


[Site "https://www.chess.com"]

[Event "Titled Tuesday Blitz January 17 Early 2023"]
[White "Urazayev, Arystanbek"]
[Black "Paravyan, David"]
[WhiteFideId "13709810"]
[BlackFideId "4194985"]
[WhiteElo "2460"]
[BlackElo "2601"]
[Result "0-1"]
[Round "08"]
[TimeControl "180+2"]
[Date "2023.01.17"]
[WhiteClock "0:00:04"]
[BlackClock "0:00:12"]

1. d4 {[%clk 0:02:57]}  Nf6 {[%clk 0:02:59]} 2. c4 {[%clk 0:02:56]}  g6 {[%clk 0:03:00]} 3. Nc3 {[%clk 0:02:56]}  d5 {[%clk 0:03:01]} 4. Nf3 {[%clk 0:02:54]}  Bg7 {[%clk 0:03:00]} 5. e3 {[%clk 0:02:54]}  O-O {[%clk 0:02:59]} 6. cxd5 {[%clk 0:02:54]}  Nxd5 {[%clk 0:03:00]} 7. Bc4 {[%clk 0:02:54]}  Nxc3 {[%clk 0:03:01]} 8. bxc3 {[%clk 0:02:55]}  c5 {[%clk 0:03:02]} 9. O-O {[%clk 0:02:55]}  Qc7 {[%clk 0:03:02]} 10. Bb3 {[%clk 0:02:52]}  b6 {[%clk 0:03:01]} 11. Bb2 {[%clk 0:02:49]}  Nc6 {[%clk 0:03:00]} 12. Rc1 {[%clk 0:02:48]}  Na5 {[%clk 0:02:58]} 13. Bd5 {[%clk 0:02:43]}  Bb7 {[%clk 0:02:57]} 14. c4 {[%clk 0:02:41]}  Rad8 {[%clk 0:02:51]} 15. Bxb7 {[%clk 0:02:40]}  Qxb7 {[%clk 0:02:52]} 16. Qa4 {[%clk 0:02:33]}  cxd4 {[%clk 0:02:44]} 17. exd4 {[%clk 0:02:30]}  Rc8 {[%clk 0:02:44]} 18. Ba3 {[%clk 0:02:20]}  Rfd8 {[%clk 0:02:39]} 19. Rfe1 {[%clk 0:02:17]}  e6 {[%clk 0:02:37]} 20. h4 {[%clk 0:01:51]}  Bh6 {[%clk 0:02:18]} 21. Rc2 {[%clk 0:01:45]}  Qc6 {[%clk 0:02:16]} 22. Qxc6 {[%clk 0:01:41]}  Rxc6 {[%clk 0:02:17]} 23. Ne5 {[%clk 0:01:42]}  Rcc8 {[%clk 0:02:16]} 24. Re4 {[%clk 0:01:26]}  Bg7 {[%clk 0:02:14]} 25. Be7 {[%clk 0:01:24]}  Re8 {[%clk 0:02:13]} 26. Bb4 {[%clk 0:01:24]}  Nb7 {[%clk 0:01:40]} 27. h5 {[%clk 0:01:06]}  Red8 {[%clk 0:01:33]} 28. Nf3 {[%clk 0:00:59]}  b5 {[%clk 0:01:27]} 29. c5 {[%clk 0:00:39]}  a5 {[%clk 0:01:26]} 30. Bd2 {[%clk 0:00:39]}  b4 {[%clk 0:01:24]} 31. h6 {[%clk 0:00:28]}  Bf8 {[%clk 0:01:23]} 32. Bg5 {[%clk 0:00:25]}  Rd5 {[%clk 0:01:22]} 33. Ne5 {[%clk 0:00:17]}  Nd6 {[%clk 0:01:11]} 34. cxd6 {[%clk 0:00:17]}  Rxc2 {[%clk 0:01:12]} 35. d7 {[%clk 0:00:18]}  Rxa2 {[%clk 0:00:23]} 36. d8=Q {[%clk 0:00:16]}  Rxd8 {[%clk 0:00:23]} 37. Bxd8 {[%clk 0:00:17]}  b3 {[%clk 0:00:20]} 38. Nc4 {[%clk 0:00:11]}  b2 {[%clk 0:00:08]} 39. Nxb2 {[%clk 0:00:05]}  Rxb2 {[%clk 0:00:09]} 40. d5 {[%clk 0:00:03]}  e5 {[%clk 0:00:10]} 41. Rxe5 {[%clk 0:00:03]}  Rb1+ {[%clk 0:00:10]} 42. Kh2 {[%clk 0:00:03]}  Bd6 {[%clk 0:00:10]} 43. f4 {[%clk 0:00:04]}  Bxe5 {[%clk 0:00:09]} 44. fxe5 {[%clk 0:00:04]}  a4 {[%clk 0:00:04]} 45. Be7 {[%clk 0:00:03]}  Rd1 {[%clk 0:00:04]} 46. d6 {[%clk 0:00:02]}  a3 {[%clk 0:00:05]} 47. d7 {[%clk 0:00:03]}  Rxd7 {[%clk 0:00:06]} 48. Bxa3 {[%clk 0:00:03]}  Rd5 {[%clk 0:00:06]} 49. Bb2 {[%clk 0:00:01]}  Kf8 {[%clk 0:00:07]} 50. Kg3 {[%clk 0:00:01]}  Ke7 {[%clk 0:00:07]} 51. Kf4 {[%clk 0:00:01]}  Ke6 {[%clk 0:00:08]} 52. g4 {[%clk 0:00:02]}  Rb5 {[%clk 0:00:09]} 53. Bc3 {[%clk 0:00:02]}  Rb3 {[%clk 0:00:09]} 54. Ba1 {[%clk 0:00:02]}  Ra3 {[%clk 0:00:09]} 55. Bb2 {[%clk 0:00:02]}  Ra4+ {[%clk 0:00:09]} 56. Kg5 {[%clk 0:00:03]}  Re4 {[%clk 0:00:10]} 57. Ba1 {[%clk 0:00:03]}  Rxe5+ {[%clk 0:00:09]} 58. Bxe5 {[%clk 0:00:04]}  Kxe5 {[%clk 0:00:10]} 59. Kh4 {[%clk 0:00:04]}  Kf4 {[%clk 0:00:11]} 60. Kh3 {[%clk 0:00:04]}  Kg5 {[%clk 0:00:12]} 0-1


[Site "https://www.chess.com"]

[Event "Titled Tuesday Blitz January 17 Early 2023"]
[White "Arjun, Kalyan"]
[Black "Sadhwani, Raunak"]
[WhiteFideId "35018701"]
[BlackFideId "35093487"]
[WhiteElo "2516"]
[BlackElo "2627"]
[Result "0-1"]
[Round "08"]
[TimeControl "180+2"]
[Date "2023.01.17"]
[WhiteClock "0:00:02"]
[BlackClock "0:00:04"]

1. e4 {[%clk 0:03:00]}  g6 {[%clk 0:03:00]} 2. d4 {[%clk 0:03:00]}  Bg7 {[%clk 0:03:01]} 3. Nf3 {[%clk 0:02:59]}  d6 {[%clk 0:03:02]} 4. c3 {[%clk 0:02:59]}  Nf6 {[%clk 0:03:01]} 5. Bd3 {[%clk 0:02:59]}  O-O {[%clk 0:03:01]} 6. O-O {[%clk 0:02:59]}  Nc6 {[%clk 0:03:02]} 7. Nbd2 {[%clk 0:02:59]}  e5 {[%clk 0:03:03]} 8. Re1 {[%clk 0:02:58]}  Nh5 {[%clk 0:03:02]} 9. Nb3 {[%clk 0:02:48]}  h6 {[%clk 0:02:59]} 10. h3 {[%clk 0:02:47]}  Qf6 {[%clk 0:02:59]} 11. Be3 {[%clk 0:02:38]}  Nf4 {[%clk 0:02:59]} 12. Bf1 {[%clk 0:02:37]}  Re8 {[%clk 0:02:45]} 13. d5 {[%clk 0:02:29]}  Nb8 {[%clk 0:02:16]} 14. a4 {[%clk 0:02:17]}  a5 {[%clk 0:02:16]} 15. Nbd2 {[%clk 0:02:05]}  Na6 {[%clk 0:02:06]} 16. Nc4 {[%clk 0:02:02]}  b6 {[%clk 0:02:06]} 17. Na3 {[%clk 0:01:53]}  g5 {[%clk 0:01:56]} 18. Nd2 {[%clk 0:01:49]}  Qg6 {[%clk 0:01:54]} 19. g4 {[%clk 0:01:04]}  h5 {[%clk 0:01:48]} 20. Qf3 {[%clk 0:00:58]}  Nc5 {[%clk 0:01:43]} 21. Nb5 {[%clk 0:00:54]}  Re7 {[%clk 0:01:37]} 22. b4 {[%clk 0:00:44]}  Nb7 {[%clk 0:01:15]} 23. Nc4 {[%clk 0:00:41]}  hxg4 {[%clk 0:01:06]} 24. hxg4 {[%clk 0:00:40]}  Qh6 {[%clk 0:01:07]} 25. Bxf4 {[%clk 0:00:23]}  exf4 {[%clk 0:01:08]} 26. e5 {[%clk 0:00:18]}  axb4 {[%clk 0:00:23]} 27. exd6 {[%clk 0:00:15]}  Rxe1 {[%clk 0:00:22]} 28. Rxe1 {[%clk 0:00:16]}  Bd7 {[%clk 0:00:22]} 29. dxc7 {[%clk 0:00:12]}  Rxa4 {[%clk 0:00:17]} 30. Nxb6 {[%clk 0:00:11]}  Qxb6 {[%clk 0:00:16]} 31. d6 {[%clk 0:00:05]}  Ra8 {[%clk 0:00:06]} 32. Re7 {[%clk 0:00:03]}  Bc6 {[%clk 0:00:03]} 33. Qd3 {[%clk 0:00:03]}  Qxb5 {[%clk 0:00:02]} 34. Qxb5 {[%clk 0:00:02]}  Bxb5 {[%clk 0:00:03]} 35. Bxb5 {[%clk 0:00:03]}  Nxd6 {[%clk 0:00:04]} 36. cxb4 {[%clk 0:00:03]}  Nxb5 {[%clk 0:00:03]} 37. Rd7 {[%clk 0:00:03]}  Bf6 {[%clk 0:00:04]} 38. Rd5 {[%clk 0:00:02]}  Nxc7 {[%clk 0:00:03]} 39. Rf5 {[%clk 0:00:02]}  Kg7 {[%clk 0:00:04]} 40. Rc5 {[%clk 0:00:02]}  Ne6 {[%clk 0:00:04]} 0-1


[Site "https://www.chess.com"]

[Event "Titled Tuesday Blitz January 17 Early 2023"]
[White "Narayanan.S.L"]
[Black "Riehle, Marco"]
[WhiteFideId "5058422"]
[BlackFideId "12904392"]
[WhiteElo "2660"]
[BlackElo "2368"]
[Result "1/2-1/2"]
[Round "08"]
[TimeControl "180+2"]
[Date "2023.01.17"]
[WhiteClock "0:01:36"]
[BlackClock "0:00:14"]

1. e4 {[%clk 0:02:44]}  e5 {[%clk 0:02:59]} 2. Nf3 {[%clk 0:02:43]}  Nf6 {[%clk 0:02:59]} 3. Nc3 {[%clk 0:02:44]}  Nc6 {[%clk 0:02:54]} 4. d4 {[%clk 0:02:44]}  exd4 {[%clk 0:02:55]} 5. Nd5 {[%clk 0:02:44]}  Nb4 {[%clk 0:02:54]} 6. Nxf6+ {[%clk 0:02:40]}  Qxf6 {[%clk 0:02:55]} 7. Bc4 {[%clk 0:02:39]}  Bc5 {[%clk 0:02:51]} 8. O-O {[%clk 0:02:38]}  d6 {[%clk 0:02:48]} 9. e5 {[%clk 0:02:36]}  dxe5 {[%clk 0:02:47]} 10. Ng5 {[%clk 0:02:36]}  O-O {[%clk 0:02:43]} 11. Qh5 {[%clk 0:02:35]}  Qg6 {[%clk 0:02:34]} 12. Qh4 {[%clk 0:02:34]}  Bf5 {[%clk 0:02:20]} 13. a3 {[%clk 0:02:29]}  Nc6 {[%clk 0:02:14]} 14. Bd5 {[%clk 0:02:12]}  Be7 {[%clk 0:02:08]} 15. Qg3 {[%clk 0:02:06]}  h6 {[%clk 0:02:06]} 16. Nf3 {[%clk 0:02:03]}  Qxg3 {[%clk 0:02:06]} 17. fxg3 {[%clk 0:02:03]}  Bxc2 {[%clk 0:01:55]} 18. Bxc6 {[%clk 0:02:03]}  bxc6 {[%clk 0:01:55]} 19. Nxe5 {[%clk 0:02:04]}  c5 {[%clk 0:01:27]} 20. Bf4 {[%clk 0:02:04]}  Bd6 {[%clk 0:01:26]} 21. Nc4 {[%clk 0:02:00]}  Bd3 {[%clk 0:01:20]} 22. Rfc1 {[%clk 0:01:58]}  Bxc4 {[%clk 0:01:16]} 23. Rxc4 {[%clk 0:01:59]}  Rfe8 {[%clk 0:01:16]} 24. b4 {[%clk 0:01:58]}  cxb4 {[%clk 0:01:09]} 25. Bxd6 {[%clk 0:01:58]}  cxd6 {[%clk 0:01:08]} 26. axb4 {[%clk 0:01:59]}  Re2 {[%clk 0:01:05]} 27. Rf1 {[%clk 0:01:53]}  Rb2 {[%clk 0:00:54]} 28. Rf2 {[%clk 0:01:48]}  Rb1+ {[%clk 0:00:42]} 29. Rf1 {[%clk 0:01:49]}  Rxf1+ {[%clk 0:00:42]} 30. Kxf1 {[%clk 0:01:49]}  a5 {[%clk 0:00:41]} 31. bxa5 {[%clk 0:01:48]}  Rxa5 {[%clk 0:00:42]} 32. Rxd4 {[%clk 0:01:49]}  Ra6 {[%clk 0:00:42]} 33. g4 {[%clk 0:01:49]}  Kf8 {[%clk 0:00:42]} 34. h3 {[%clk 0:01:50]}  Ke7 {[%clk 0:00:43]} 35. Kf2 {[%clk 0:01:51]}  Ra5 {[%clk 0:00:43]} 36. Rd2 {[%clk 0:01:51]}  Re5 {[%clk 0:00:42]} 37. Ra2 {[%clk 0:01:52]}  h5 {[%clk 0:00:42]} 38. gxh5 {[%clk 0:01:52]}  Rxh5 {[%clk 0:00:43]} 39. Ke3 {[%clk 0:01:52]}  Ke6 {[%clk 0:00:41]} 40. Ra4 {[%clk 0:01:49]}  Re5+ {[%clk 0:00:41]} 41. Kd3 {[%clk 0:01:48]}  Rb5 {[%clk 0:00:40]} 42. Rg4 {[%clk 0:01:47]}  g6 {[%clk 0:00:40]} 43. h4 {[%clk 0:01:48]}  Rb3+ {[%clk 0:00:39]} 44. Kd2 {[%clk 0:01:47]}  d5 {[%clk 0:00:39]} 45. Rg5 {[%clk 0:01:46]}  Kd6 {[%clk 0:00:38]} 46. g4 {[%clk 0:01:44]}  Rh3 {[%clk 0:00:36]} 47. h5 {[%clk 0:01:44]}  gxh5 {[%clk 0:00:36]} 48. gxh5 {[%clk 0:01:44]}  f6 {[%clk 0:00:34]} 49. Rg6 {[%clk 0:01:40]}  Ke5 {[%clk 0:00:35]} 50. Rh6 {[%clk 0:01:40]}  f5 {[%clk 0:00:34]} 51. Rh8 {[%clk 0:01:41]}  Kd4 {[%clk 0:00:34]} 52. h6 {[%clk 0:01:41]}  Rh2+ {[%clk 0:00:34]} 53. Ke1 {[%clk 0:01:40]}  Ke3 {[%clk 0:00:33]} 54. Kf1 {[%clk 0:01:40]}  f4 {[%clk 0:00:32]} 55. h7 {[%clk 0:01:40]}  Kf3 {[%clk 0:00:32]} 56. Ke1 {[%clk 0:01:40]}  d4 {[%clk 0:00:32]} 57. Kd1 {[%clk 0:01:40]}  Kf2 {[%clk 0:00:29]} 58. Kd2 {[%clk 0:01:39]}  f3 {[%clk 0:00:29]} 59. Kd3 {[%clk 0:01:36]}  Rh4 {[%clk 0:00:29]} 60. Kd2 {[%clk 0:01:34]}  Rh3 {[%clk 0:00:21]} 61. Kd3 {[%clk 0:01:28]}  Kf1 {[%clk 0:00:21]} 62. Kxd4 {[%clk 0:01:29]}  f2 {[%clk 0:00:21]} 63. Kc4 {[%clk 0:01:29]}  Ke2 {[%clk 0:00:12]} 64. Re8+ {[%clk 0:01:29]}  Kd2 {[%clk 0:00:12]} 65. Rd8+ {[%clk 0:01:29]}  Kc2 {[%clk 0:00:12]} 66. Rf8 {[%clk 0:01:29]}  Rh4+ {[%clk 0:00:12]} 67. Kd5 {[%clk 0:01:29]}  Rxh7 {[%clk 0:00:11]} 68. Rxf2+ {[%clk 0:01:29]}  Kd3 {[%clk 0:00:12]} 69. Rf3+ {[%clk 0:01:30]}  Ke2 {[%clk 0:00:12]} 70. Ra3 {[%clk 0:01:31]}  Rh5+ {[%clk 0:00:12]} 71. Ke4 {[%clk 0:01:32]}  Rh4+ {[%clk 0:00:12]} 72. Kf5 {[%clk 0:01:32]}  Rh8 {[%clk 0:00:12]} 73. Ra2+ {[%clk 0:01:32]}  Kf3 {[%clk 0:00:12]} 74. Ra7 {[%clk 0:01:33]}  Rh5+ {[%clk 0:00:12]} 75. Kg6 {[%clk 0:01:34]}  Rb5 {[%clk 0:00:13]} 76. Rf7+ {[%clk 0:01:34]}  Kg4 {[%clk 0:00:13]} 77. Rf6 {[%clk 0:01:34]}  Rg5+ {[%clk 0:00:13]} 78. Kh6 {[%clk 0:01:35]}  Rh5+ {[%clk 0:00:13]} 79. Kg7 {[%clk 0:01:36]}  Rg5+ {[%clk 0:00:14]} 80. Rg6 {[%clk 0:01:36]}  Rxg6+ {[%clk 0:00:14]} 81. Kxg6 {[%clk 0:01:36]} 1/2-1/2


[Site "https://www.chess.com"]

[Event "Titled Tuesday Blitz January 17 Early 2023"]
[White "Narayanan, Srinath"]
[Black "Maksimovic, Bojan"]
[WhiteFideId "5018420"]
[BlackFideId "14408120"]
[WhiteElo "2559"]
[BlackElo "2486"]
[Result "1-0"]
[Round "08"]
[TimeControl "180+2"]
[Date "2023.01.17"]
[WhiteClock "0:01:29"]
[BlackClock "0:00:42"]

1. Nf3 {[%clk 0:03:00]}  Nf6 {[%clk 0:02:59]} 2. c4 {[%clk 0:02:59]}  g6 {[%clk 0:02:59]} 3. b3 {[%clk 0:02:58]}  Bg7 {[%clk 0:02:59]} 4. Bb2 {[%clk 0:02:59]}  d6 {[%clk 0:02:59]} 5. g3 {[%clk 0:03:00]}  e5 {[%clk 0:02:58]} 6. Bg2 {[%clk 0:03:00]}  O-O {[%clk 0:02:56]} 7. O-O {[%clk 0:03:01]}  Nc6 {[%clk 0:02:56]} 8. Nc3 {[%clk 0:03:01]}  Re8 {[%clk 0:02:54]} 9. d3 {[%clk 0:03:02]}  h6 {[%clk 0:02:49]} 10. Rc1 {[%clk 0:03:01]}  Bf5 {[%clk 0:02:48]} 11. Nd2 {[%clk 0:03:00]}  Qd7 {[%clk 0:02:48]} 12. Nde4 {[%clk 0:02:57]}  Bh3 {[%clk 0:02:40]} 13. Nxf6+ {[%clk 0:02:57]}  Bxf6 {[%clk 0:02:39]} 14. Bxh3 {[%clk 0:02:54]}  Qxh3 {[%clk 0:02:40]} 15. Nd5 {[%clk 0:02:55]}  Bd8 {[%clk 0:02:38]} 16. f4 {[%clk 0:02:55]}  Ne7 {[%clk 0:02:06]} 17. Nf6+ {[%clk 0:02:54]}  Kf8 {[%clk 0:02:04]} 18. Nxe8 {[%clk 0:02:35]}  Kxe8 {[%clk 0:02:01]} 19. fxe5 {[%clk 0:02:36]}  dxe5 {[%clk 0:02:02]} 20. e3 {[%clk 0:02:32]}  Nf5 {[%clk 0:01:59]} 21. Qf3 {[%clk 0:02:29]}  Bg5 {[%clk 0:01:39]} 22. Rce1 {[%clk 0:02:28]}  f6 {[%clk 0:01:24]} 23. Qxb7 {[%clk 0:02:06]}  Rd8 {[%clk 0:01:24]} 24. Qc6+ {[%clk 0:02:02]}  Kf8 {[%clk 0:01:06]} 25. d4 {[%clk 0:01:57]}  Nxe3 {[%clk 0:00:42]} 26. Rxf6+ {[%clk 0:01:50]}  Kg7 {[%clk 0:00:42]} 27. Rxg6+ {[%clk 0:01:29]}  Kh7 {[%clk 0:00:42]} 28. Rxg5 {[%clk 0:01:29]} 1-0


[Site "https://www.chess.com"]